bitfinex/quotes_ETHUSD_20251021
["timestamp","ask_amount","ask_price","bid_price","bid_amount"]
[1761086673128,0.25502723,3922.6,3921.3,3.827]
[1761086673340,0.25502723,3922.6,3921.7,2.54990936]
[1761086673529,2.80437896,3922.6,3921.8,2.54984375]
[1761086673724,0.53635877,3922.5,3921.8,2.54984375]
[1761086673926,0.53635877,3922.5,3921.5,0.002]
[1761086673927,0.001,3922.5,3921.5,0.002]
[1761086674236,0.001,3922.5,3922.0,2.54966191]
[1761086674430,0.001,3922.5,3921.8,3.823]
[1761086674657,0.001,3922.5,3922.1,2.54963365]
[1761086674858,0.001,3922.5,3921.9,2.54978454]
[1761086675164,0.001,3922.5,3922.1,2.54963145]
[1761086675380,0.001,3922.5,3922.2,2.54956269]
[1761086675964,0.001,3922.5,3921.8,3.823]
[1761086676162,0.001,3922.5,3922.1,2.54963094]
[1761086676863,1.5562,3922.5,3921.5,0.002]
[1761086677051,2.7834796,3921.6,3921.5,0.002]
[1761086677253,2.81535434,3921.6,3921.5,0.002]
[1761086677576,0.2335,3921.6,3921.5,0.002]
[1761086677741,2.7834796,3921.6,3921.5,0.002]
[1761086678063,0.2335,3921.6,3921.5,0.002]
[1761086678761,2.7834796,3921.6,3921.5,0.002]
[1761086679736,2.81535434,3921.6,3921.5,0.002]
[1761086680493,3.98180658,3922.4,3921.5,0.002]
[1761086680700,2.5499796,3921.6,3921.5,0.002]
[1761086681796,4.13705434,3921.6,3921.5,0.002]
[1761086682606,4.1051796,3921.6,3921.5,0.002]
[1761086682902,4.6120596,3921.6,3921.5,0.002]
[1761086683086,5.71025151,3921.6,3921.5,0.002]
[1761086685767,5.20337151,3921.6,3921.5,0.002]
[1761086685971,9.02137151,3921.6,3921.5,0.002]
[1761086686268,9.52825151,3921.6,3921.5,0.002]
[1761086686467,3.05711972,3921.2,3921.1,1e-08]
[1761086686694,5.36044538,3921.2,3921.1,1e-08]
[1761086686897,5.32856739,3921.2,3921.1,1e-08]
[1761086689021,2.55023972,3921.2,3921.1,1e-08]
[1761086689328,4.61231972,3921.2,3921.1,1e-08]
[1761086689497,4.10543972,3921.2,3921.1,1e-08]
[1761086691290,4.61231972,3921.2,3921.1,1e-08]
[1761086692524,4.10543972,3921.2,3921.1,1e-08]
[1761086692721,5.15259953,3921.2,3921.1,1e-08]
[1761086692904,8.96659953,3921.2,3921.1,1e-08]
[1761086693725,9.47347953,3921.2,3921.1,1e-08]
[1761086693922,8.96659953,3921.2,3921.1,1e-08]
[1761086696139,8.96359953,3921.2,3921.1,1e-08]
[1761086699064,5.15259953,3921.2,3921.1,1e-08]
[1761086699260,7.91443972,3921.2,3921.1,1e-08]
[1761086700646,4.10543972,3921.2,3921.1,1e-08]
[1761086701145,1.5552,3921.2,3921.1,1e-08]
[1761086701338,2.54952451,3922.3,3921.1,0.68400001]
[1761086701537,3.808,3922.2,3921.1,0.22370001]
[1761086701865,3.808,3922.2,3921.2,14.5]
[1761086701866,4.20478066,3922.2,3921.2,14.5]
[1761086702070,2.55023972,3921.2,3921.1,1e-08]
[1761086702232,6.35723972,3921.2,3921.1,1e-08]
[1761086703656,2.55015158,3921.4,3921.1,0.68400001]
[1761086703979,6.35623142,3921.3,3921.1,0.68400001]
[1761086704289,6.35623142,3921.3,3921.1,0.22370001]
[1761086704647,6.35623142,3921.3,3921.2,14.5]
[1761086705187,2.55023972,3921.2,3921.1,1e-08]
[1761086705348,4.61231972,3921.2,3921.1,1e-08]
[1761086705979,4.64419771,3921.2,3921.1,1e-08]
[1761086706525,5.15188912,3921.2,3921.1,1e-08]
[1761086706789,0.50688,3920.3,3918.6,14.5]
[1761086707085,2.55154373,3919.2,3918.6,14.5]
[1761086707253,3.804,3919.3,3918.6,14.5]
[1761086707682,3.804,3919.3,3918.8,0.6064]
[1761086707889,2.55162718,3919.1,3918.8,0.6064]
[1761086708187,2.55155635,3919.2,3918.8,0.1461]
[1761086708403,3.804,3919.3,3918.9,0.4603]
[1761086709158,2.55162294,3919.1,3918.8,0.1461]
[1761086709782,2.55185945,3918.8,3918.6,14.5]
[1761086710185,6.35386669,3918.7,3918.3,0.002]
[1761086710417,0.03189914,3918.6,3918.3,0.002]
[1761086710610,3.802,3918.7,3918.3,0.002]
[1761086710813,4.47055096,3923.8,3918.3,0.002]
[1761086710814,0.03189914,3918.6,3918.3,0.002]
[1761086711002,0.487,3919.1,3918.4,0.4603]
[1761086711204,2.55206206,3918.4,3918.3,0.002]
[1761086711994,1.926,3918.5,3918.3,0.002]
[1761086712193,1.13423913,3920.4,3918.3,0.002]
[1761086712194,1.5552,3919.8,3918.4,0.4603]
[1761086712386,1.5552,3919.2,3918.4,0.4603]
[1761086712581,1.5552,3919.2,3918.3,0.002]
[1761086712582,1.5552,3919.4,3918.3,0.002]
[1761086712892,2.55201154,3918.5,3918.3,0.002]
[1761086713091,2.55206206,3918.4,3918.3,0.002]
[1761086713413,3.8,3918.5,3918.3,0.002]
[1761086713611,2.55206206,3918.4,3918.3,0.002]
[1761086713823,3.8,3918.5,3918.3,0.002]
[1761086714296,6.35200026,3918.5,3918.3,0.002]
[1761086714688,2.55206206,3918.4,3918.3,0.002]
[1761086715084,3.8,3918.5,3918.3,0.002]
[1761086715306,6.35200772,3918.5,3918.3,0.002]
[1761086715726,0.2688,3919.5,3918.3,0.4623]
[1761086715932,2.5518819,3918.7,3918.3,0.4623]
[1761086716086,6.3498819,3918.7,3918.3,0.4623]
[1761086716424,3.798,3918.7,3918.3,0.4623]
[1761086716929,4.41441217,3918.7,3918.3,0.002]
[1761086717129,6.96628429,3918.7,3918.3,0.002]
[1761086717424,4.14561217,3918.7,3918.3,0.002]
[1761086717715,3.798,3918.7,3918.3,0.002]
[1761086717919,1.5552,3918.8,3918.3,0.002]
[1761086718118,0.2368,3920.4,3918.4,3.01235218]
[1761086718119,0.2688,3920.1,3918.4,3.01235218]
[1761086718330,3.797,3919.7,3918.4,0.4603]
[1761086718634,3.797,3919.7,3918.3,2.55411949]
[1761086718635,3.797,3919.7,3918.5,0.47328516]
[1761086718840,3.797,3919.7,3918.8,2.55179102]
[1761086718841,1.5552,3919.6,3918.8,2.55179102]
[1761086719003,3.797,3919.7,3918.8,2.55179102]
[1761086719191,3.797,3919.7,3918.9,14.9603]
[1761086719192,1.5552,3919.6,3918.9,14.9603]
[1761086719387,3.797,3919.7,3919.0,2.99406534]
[1761086719620,3.797,3919.7,3919.5,0.1461]
[1761086720089,3.796,3920.1,3919.6,14.9424]
[1761086720289,3.795,3920.1,3919.6,14.9424]
[1761086720490,0.001,3921.2,3920.0,2.55100594]
[1761086720719,0.001,3921.2,3921.1,0.2148]
[1761086721091,0.001,3921.2,3921.1,15.1572]
[1761086721289,0.001,3921.2,3921.1,17.70750476]
[1761086721738,0.001,3921.2,3921.1,14.7148]
[1761086721897,2.5503382,3921.1,3920.3,0.4424]
[1761086722090,0.25513382,3921.1,3920.3,0.4424]
[1761086722291,0.25513382,3921.1,3919.9,0.2148]
[1761086722292,2.5823047,3921.0,3919.9,0.2148]
[1761086722504,2.55124694,3921.2,3920.4,14.5]
[1761086722732,0.001,3921.2,3920.4,14.5]
[1761086723693,2.55128951,3921.2,3920.4,14.5]
[1761086724003,0.5381203,3921.1,3920.4,14.5]
[1761086724203,0.001,3921.2,3920.4,14.5]
[1761086725135,0.001,3921.2,3920.5,0.4499]
[1761086725334,0.001,3921.2,3920.4,14.5]
[1761086725898,0.001,3921.2,3920.4,14.9499]
[1761086726314,0.001,3921.2,3920.4,17.50064412]
[1761086726612,0.001,3921.2,3921.1,0.2148]
[1761086726817,0.001,3921.2,3920.8,0.2148]
[1761086727148,0.001,3921.2,3920.4,14.5]
[1761086727345,0.001,3921.2,3921.1,0.2148]
[1761086727703,0.001,3921.2,3920.8,0.2148]
[1761086728808,0.001,3921.2,3920.5,4.2389]
[1761086729014,0.001,3921.2,3920.5,3.789]
[1761086729206,0.001,3921.2,3921.1,0.2148]
[1761086729511,0.001,3921.2,3920.6,0.4499]
[1761086729711,0.001,3921.2,3921.1,0.2148]
[1761086730110,0.001,3921.2,3921.1,7.00100476]
[1761086730505,0.001,3921.2,3921.1,21.50100476]
[1761086730745,0.001,3921.2,3921.1,23.90614594]
[1761086730962,0.001,3921.2,3921.1,25.46134594]
[1761086731246,0.001,3921.2,3921.1,25.96822594]
[1761086731934,0.001,3921.2,3921.1,22.18222594]
[1761086732128,0.001,3921.2,3921.1,25.96722594]
[1761086732311,0.001,3921.6,3921.5,4.61212462]
[1761086732509,0.001,3922.0,3921.9,3.05666454]
[1761086732871,0.001,3922.5,3922.4,4.61153951]
[1761086733110,0.001,3922.5,3922.4,8.39553951]
[1761086733267,0.001,3922.5,3922.4,8.84543951]
[1761086733743,0.001,3922.5,3922.4,23.34543951]
[1761086733945,0.001,3922.5,3922.4,25.75058069]
[1761086734539,0.001,3922.5,3922.4,17.35504118]
[1761086734773,0.001,3922.5,3922.4,18.7319]
[1761086734949,0.001,3922.5,3922.4,14.5]
[1761086735149,0.001,3922.5,3921.1,0.6647]
[1761086735376,0.001,3922.5,3921.2,0.4499]
[1761086735550,0.001,3922.5,3922.0,2.5496967]
[1761086735848,0.001,3922.5,3922.1,14.5]
[1761086736054,0.001,3922.5,3922.4,2.75425951]
[1761086736472,0.001,3922.5,3922.4,3.20415951]
[1761086736686,0.001,3922.5,3922.4,17.25425951]
[1761086736857,0.001,3922.5,3922.4,17.70415951]
[1761086737046,0.001,3922.5,3922.4,21.99103951]
[1761086737241,0.001,3922.5,3922.4,23.14873994]
[1761086737645,0.001,3922.5,3922.4,22.64085994]
[1761086739587,0.001,3922.5,3922.4,22.63885994]
[1761086739764,0.001,3922.5,3922.4,20.08940043]
[1761086739966,0.001,3922.5,3922.4,14.5]
[1761086740295,0.001,3922.5,3922.4,18.277]
[1761086740697,0.001,3922.5,3922.4,20.82645951]
[1761086740868,0.001,3922.5,3922.4,21.27635951]
[1761086741794,0.001,3922.5,3922.4,20.82645951]
[1761086742301,0.001,3922.5,3922.4,23.61396067]
[1761086742512,0.001,3922.5,3922.4,25.16916067]
[1761086743393,0.001,3922.5,3922.4,25.67604067]
[1761086747599,0.001,3922.5,3922.4,21.89904067]
[1761086747802,0.001,3922.5,3922.4,25.67004067]
[1761086748582,0.66864861,3926.8,3925.6,2.54738129]
[1761086748776,0.09999999,3928.1,3925.6,2.54738129]
[1761086748777,0.89743913,3929.2,3926.7,9.96111765]
[1761086749031,0.5946,3928.9,3926.9,1.5552]
[1761086749182,0.03181633,3928.8,3928.0,14.5]
[1761086749375,0.46021633,3928.8,3927.5,3.769]
[1761086749702,0.46021633,3928.8,3927.4,3.769]
[1761086749907,2.54549376,3928.6,3927.4,3.769]
[1761086750074,0.31716871,3928.7,3927.4,3.769]
[1761086750281,0.1662,3928.9,3927.4,3.769]
[1761086750282,0.4284,3928.6,3927.4,3.769]
[1761086751412,0.4284,3928.6,3927.4,6.31519786]
[1761086751579,0.4284,3928.6,3927.4,3.769]
[1761086751775,0.03181876,3928.5,3927.4,3.769]
[1761086751979,0.03181876,3928.5,3926.6,0.50688]
[1761086751980,0.03181876,3928.5,3926.4,0.2198]
[1761086752213,1.5552,3927.9,3926.5,0.836]
[1761086752380,0.41010359,3927.8,3926.5,0.836]
[1761086752589,1.5552,3928.2,3926.8,2.54654554]
[1761086752789,2.54588528,3928.0,3926.6,2.54671498]
[1761086752995,2.54588528,3928.0,3926.5,0.836]
[1761086752996,4.10109572,3927.9,3926.5,0.836]
[1761086753203,2.54598407,3927.8,3926.5,0.836]
[1761086753402,2.54596058,3927.8,3926.5,0.836]
[1761086753589,2.3128613,3927.7,3926.5,3.38278626]
[1761086753978,0.4284,3927.6,3926.6,2.54673208]
[1761086754183,0.03182686,3927.5,3925.5,1.5552]
[1761086754382,0.03182686,3927.5,3925.9,2.54717437]
[1761086754612,1.5552,3927.2,3925.8,2.54724558]
[1761086754820,0.48481858,3927.1,3925.7,3.765]
[1761086754984,2.5463558,3927.2,3925.8,2.5472288]
[1761086755185,1.5552,3926.9,3925.7,3.765]
[1761086755416,1.5552,3926.9,3925.7,6.31225993]
[1761086755619,2.54672387,3926.7,3925.0,2.76756395]
[1761086755841,0.03183415,3926.6,3925.3,3.765]
[1761086756015,2.54704512,3926.2,3924.2,0.46]
[1761086756215,1.01452916,3926.1,3924.3,3.764]
[1761086756434,0.98269095,3926.1,3924.3,6.31222471]
[1761086756636,0.4733,3926.0,3925.0,2.54771739]
[1761086756830,0.4733,3926.0,3924.3,3.764]
[1761086757135,0.4733,3926.0,3924.9,2.54777638]
[1761086757444,0.33386967,3925.9,3924.9,2.54777638]
[1761086757938,0.1656,3925.8,3925.0,2.54776344]
[1761086758441,6.31082931,3926.5,3924.2,0.3228272]
[1761086758442,0.1202,3926.8,3925.1,3.764]
[1761086758617,0.4717,3926.7,3925.8,2.54721058]
[1761086758818,0.4717,3926.7,3925.6,2.54737915]
[1761086758819,0.4717,3926.7,3925.9,2.54716553]
[1761086759529,0.4717,3926.7,3926.0,2.54706151]
[1761086759721,0.90719,3926.7,3926.1,2.54705296]
[1761086760240,0.1202,3926.8,3925.2,3.764]
[1761086760241,0.1202,3926.8,3926.4,2.54680133]
[1761086760439,0.4717,3926.7,3925.3,0.46]
[1761086760608,0.1202,3926.8,3925.0,2.54772573]
[1761086760812,0.03182281,3928.0,3925.6,0.50688]
[1761086761008,0.03182281,3928.0,3925.4,3.36924741]
[1761086761009,0.2185,3926.9,3925.7,3.762]
[1761086761206,0.1625,3928.1,3926.7,2.54666003]
[1761086761207,0.3744,3927.5,3926.7,2.54666003]
[1761086761436,0.3744,3927.5,3926.8,2.54655561]
[1761086761606,0.3744,3927.5,3926.7,2.54665853]
[1761086762045,0.2185,3926.8,3926.3,2.54686245]
[1761086762342,0.2185,3926.8,3925.8,0.50688]
[1761086762343,0.2185,3926.8,3926.5,2.5467787]
[1761086762741,1.9296,3927.7,3926.4,0.2275]
[1761086762958,0.94346,3927.6,3926.5,2.5467974]
[1761086763157,0.94346,3927.6,3926.7,2.54661466]
[1761086763449,0.94346,3927.6,3926.9,2.54653096]
[1761086763648,0.94346,3927.6,3926.8,2.54658367]
[1761086764457,0.5369,3928.1,3926.8,0.01285226]
[1761086764654,2.54453054,3930.0,3926.9,4.2328487]
[1761086764655,0.3744,3928.7,3926.9,4.2328487]
[1761086764856,0.3744,3928.7,3927.8,2.54589497]
[1761086765152,1.9296,3928.7,3927.6,2.54608412]
[1761086765317,0.46411094,3928.6,3927.6,2.54608412]
[1761086765515,0.83641094,3928.6,3927.1,0.2275]
[1761086765755,1.58701876,3928.5,3926.9,6.30653224]
[1761086765954,0.3723,3928.4,3927.2,2.54634158]
[1761086766154,0.3723,3928.4,3927.8,0.2]
[1761086766720,0.001,3928.6,3928.5,2.54550082]
[1761086766923,0.001,3928.6,3928.5,0.53185852]
[1761086767123,0.001,3928.6,3928.3,0.2275]
[1761086767331,0.001,3928.6,3927.8,0.2]
[1761086767741,0.001,3928.6,3928.5,2.77300082]
[1761086767943,0.001,3928.6,3928.5,4.83508082]
[1761086768146,0.001,3928.6,3928.5,0.6875]
[1761086768463,0.001,3928.6,3928.5,2.77300082]
[1761086768625,0.001,3928.6,3928.5,3.5103009]
[1761086769248,0.001,3928.6,3928.5,3.23300082]
[1761086769760,0.001,3928.6,3928.5,2.54550082]
[1761086770059,0.8569114,3929.5,3928.6,3.05231603]
[1761086770244,0.8569114,3929.5,3929.4,2.54491779]
[1761086770473,0.8569114,3929.5,3928.7,3.757]
[1761086770848,0.39901147,3929.4,3927.9,1.5552]
[1761086771170,0.3672,3929.4,3927.9,1.5552]
[1761086771372,0.3672,3929.4,3928.0,2.54577639]
[1761086771373,0.03181228,3929.3,3928.0,2.54577639]
[1761086771571,2.54506136,3929.2,3928.0,2.54576425]
[1761086771896,0.0318139,3929.1,3928.0,2.54576425]
[1761086772049,0.3673,3929.0,3928.0,2.54577936]
[1761086772251,0.3673,3929.0,3927.8,0.2]
[1761086772453,0.1666,3927.9,3927.8,0.2]
[1761086772977,0.5318,3927.9,3927.8,0.2]
[1761086773354,4.63288966,3927.9,3927.8,0.2]
[1761086773575,2.087,3927.9,3927.8,0.2]
[1761086773787,4.63288966,3927.9,3927.8,0.2]
[1761086773976,5.35075604,3927.9,3927.8,0.2]
[1761086775453,0.0642,3928.0,3927.8,0.2]
[1761086775678,2.54588966,3927.9,3927.8,0.2]
[1761086775996,4.56768966,3927.9,3927.8,0.2]
[1761086776173,4.10116886,3927.8,3926.6,2.54667753]
[1761086776496,4.56776886,3927.8,3926.6,2.54667753]
[1761086776724,4.71762213,3927.7,3926.5,0.002]
[1761086776859,0.1752,3926.7,3926.5,0.002]
[1761086778056,0.49553415,3926.6,3926.5,0.002]
[1761086778712,0.03183415,3926.6,3926.5,0.002]
[1761086778864,3.755,3926.8,3926.5,0.002]
[1761086779180,3.0074842,3926.7,3926.5,0.002]
[1761086779578,3.00753254,3926.6,3926.5,0.002]
[1761086779805,3.03936669,3926.6,3926.5,0.002]
[1761086779988,3.00753254,3926.6,3926.5,0.002]
[1761086780760,0.4608,3926.6,3926.5,0.002]
[1761086780962,4.694521,3926.6,3926.5,0.002]
[1761086781189,4.2158,3926.6,3926.5,0.002]
[1761086781581,6.79436669,3926.6,3926.5,0.002]
[1761086781891,8.31773254,3926.6,3926.5,0.002]
[1761086782465,2.016,3926.6,3926.5,0.002]
[1761086782666,4.2158,3926.6,3926.5,0.002]
[1761086782991,7.18725366,3926.6,3926.5,0.002]
[1761086783386,4.64052112,3926.6,3926.5,0.002]
[1761086783895,7.21908781,3926.6,3926.5,0.002]
[1761086784064,7.18725366,3926.6,3926.5,0.002]
[1761086784396,9.24933366,3926.6,3926.5,0.002]
[1761086786087,9.24933366,3926.6,3923.6,3.754]
[1761086786088,2.54710576,3926.1,3923.6,3.754]
[1761086786327,4.10327706,3924.6,3923.2,0.2259]
[1761086786619,0.50688,3925.9,3923.3,0.4486]
[1761086786620,1.5552,3924.4,3923.3,0.4486]
[1761086786789,2.54749355,3925.5,3923.3,0.4486]
[1761086786790,3.754,3924.3,3923.3,0.4486]
[1761086786967,3.754,3924.2,3923.3,0.4486]
[1761086787169,0.03185443,3924.1,3923.2,0.2259]
[1761086787419,0.03185443,3924.1,3923.3,2.54881904]
[1761086787598,0.03185443,3924.1,3923.4,2.54880093]
[1761086787909,0.03185443,3924.1,3923.4,2.54879188]
[1761086788113,3.754,3924.2,3923.4,2.54879188]
[1761086788418,3.754,3924.2,3923.6,2.54867957]
[1761086789170,3.754,3924.7,3924.1,2.77421726]
[1761086789375,3.754,3924.7,3924.2,2.54823713]
[1761086789586,3.754,3924.7,3924.3,2.54821107]
[1761086789911,3.754,3924.8,3924.4,2.5481038]
[1761086790404,3.754,3924.8,3924.1,2.77424552]
[1761086790580,3.754,3924.8,3924.2,2.54826887]
[1761086790784,3.754,3924.8,3924.3,2.54817073]
[1761086791404,3.754,3924.8,3924.4,2.54815701]
[1761086791905,3.754,3924.8,3924.3,2.54820856]
[1761086792280,0.2302,3924.9,3924.3,2.54820856]
[1761086792490,3.753,3924.7,3924.3,2.54820856]
[1761086793022,0.2302,3924.9,3924.2,2.54827063]
[1761086793302,3.753,3924.7,3924.2,2.54827063]
[1761086793505,0.03185037,3924.6,3923.6,0.4486]
[1761086794006,0.3359,3924.6,3923.1,4.2026]
[1761086794208,4.15132,3924.7,3923.3,0.4486]
[1761086794426,0.53652,3925.2,3923.5,0.50688]
[1761086794581,3.753,3925.1,3924.3,2.54817856]
[1761086794779,0.1151,3925.3,3923.6,0.01289965]
[1761086794780,0.1151,3925.3,3923.9,0.50688]
[1761086794988,0.483,3925.4,3924.0,0.0128951]
[1761086795319,0.483,3925.4,3924.9,2.54782574]
[1761086795536,0.5638,3925.8,3924.3,0.01288699]
[1761086795725,3.752,3925.7,3924.4,2.54816022]
[1761086795883,4.14999,3925.7,3925.0,2.54772091]
[1761086796079,4.14999,3925.7,3924.8,2.54788341]
[1761086796080,3.752,3925.6,3924.8,2.54788341]
[1761086796402,3.752,3925.5,3924.6,2.54797092]
[1761086796601,3.752,3925.5,3924.5,2.54809504]
[1761086796602,3.752,3925.5,3924.7,2.54792649]
[1761086796816,3.752,3925.5,3924.8,2.54787862]
[1761086798115,4.223159,3925.5,3924.3,0.4486]
[1761086798413,2.54763786,3925.3,3924.2,2.54824045]
[1761086798817,4.10272857,3925.4,3924.3,2.54822502]
[1761086799003,3.751,3925.3,3924.2,0.4486]
[1761086799183,3.751,3925.3,3924.7,2.54792416]
[1761086799384,3.751,3925.3,3924.8,2.54788498]
[1761086799586,3.751,3925.3,3925.0,2.54775595]
[1761086799794,0.2279,3925.8,3924.6,0.4486]
[1761086800000,0.2279,3925.8,3925.0,2.54775881]
[1761086800001,3.751,3925.7,3925.0,2.54775881]
[1761086800194,4.30441,3925.7,3925.0,2.54775881]
[1761086800521,0.3337,3926.2,3925.1,0.2259]
[1761086800729,0.1781,3926.9,3925.7,2.54728303]
[1761086800730,0.5107,3926.9,3925.7,2.54728303]
[1761086800935,0.1173,3928.2,3925.3,0.01286882]
[1761086800936,0.3326,3927.4,3925.3,0.01286882]
[1761086801097,3.75,3927.3,3925.4,0.50688]
[1761086801298,0.40826,3927.2,3925.7,2.5473164]
[1761086801496,0.3326,3927.4,3926.4,2.54685668]
[1761086801497,3.75,3927.1,3926.4,2.54685668]
[1761086801723,0.3326,3927.4,3925.8,0.46146136]
[1761086802036,0.3311,3927.9,3926.1,2.54705687]
[1761086802199,3.067,3927.8,3926.8,2.54658156]
[1761086802617,0.001,3926.9,3926.8,2.54658156]
[1761086802904,0.001,3926.9,3926.7,2.54664915]
[1761086803332,0.001,3926.9,3926.8,2.54660283]
[1761086803854,0.001,3926.9,3923.4,2.739]
[1761086803855,2.54660283,3926.8,3924.9,0.2259]
[1761086804146,2.54698145,3926.3,3925.0,2.54776752]
[1761086804337,2.54710826,3926.1,3924.9,0.2259]
[1761086804514,1.58703902,3926.0,3924.8,0.002]
[1761086804729,0.8085139,3925.9,3924.8,0.002]
[1761086805125,0.8085139,3925.9,3924.9,2.5477777]
[1761086805329,0.2302,3925.9,3924.8,0.4506]
[1761086805708,0.2302,3925.9,3924.9,2.54778585]
[1761086806026,0.6771,3925.9,3925.0,2.54775565]
[1761086806211,0.2302,3925.9,3925.1,2.54770328]
[1761086806412,0.2302,3926.3,3925.5,2.54744499]
[1761086806638,3.9772,3926.3,3924.9,0.46147531]
[1761086806805,3.9772,3926.3,3925.0,0.72652089]
[1761086806999,3.747,3926.3,3925.0,0.72652089]
[1761086807204,3.747,3926.3,3925.7,2.54729632]
[1761086807404,0.4469,3926.5,3925.9,2.54716569]
[1761086807405,3.747,3926.5,3925.9,2.54716569]
[1761086807649,4.1217,3926.5,3925.9,2.54716569]
[1761086807817,4.1217,3926.5,3926.0,2.54710983]
[1761086808173,0.3747,3926.5,3925.9,2.5471337]
[1761086808376,0.8216,3926.5,3925.6,2.54732319]
[1761086808667,0.8216,3926.5,3925.3,2.54754022]
[1761086808668,0.23768,3926.4,3925.0,0.72652089]
[1761086808882,0.0624,3926.9,3925.4,0.4486]
[1761086809020,0.001,3926.9,3926.5,2.54677783]
[1761086810322,0.001,3926.9,3926.4,2.54684384]
[1761086810519,0.001,3926.9,3925.9,2.54714168]
[1761086810753,0.001,3926.9,3925.6,0.50688]
[1761086810754,0.001,3926.9,3926.8,2.54660283]
[1761086811432,0.001,3926.9,3926.7,2.54665533]
[1761086811633,0.5095,3926.9,3925.6,0.4486]
[1761086811864,0.03183253,3926.8,3926.1,2.54704025]
[1761086812071,0.001,3926.9,3925.8,2.54725151]
[1761086812374,0.001,3926.9,3926.1,2.54705687]
[1761086812557,0.001,3926.9,3926.8,2.54660283]
[1761086814077,0.001,3926.9,3926.8,2.98780283]
[1761086814484,0.001,3926.9,3926.8,2.54660283]
[1761086814688,0.4352,3926.9,3925.6,0.41936]
[1761086814858,0.03183253,3926.8,3925.4,4.1842]
[1761086815184,0.5131,3926.9,3925.5,1.5552]
[1761086815185,0.46243334,3926.7,3925.5,1.5552]
[1761086815353,0.4306,3926.7,3926.1,2.54703601]
[1761086815550,0.0789,3926.9,3926.2,2.54698785]
[1761086815753,0.5095,3926.9,3926.1,2.54704475]
[1761086816152,0.5095,3926.9,3926.0,2.54708092]
[1761086816455,0.5095,3926.9,3925.6,0.4412]
[1761086816456,0.30559237,3926.8,3926.2,2.54698666]
[1761086816663,0.0789,3926.9,3926.3,2.54691718]
[1761086817063,0.0789,3926.9,3925.6,2.98853298]
[1761086817064,0.0789,3926.9,3925.6,0.4412]
[1761086817380,0.0789,3926.9,3926.2,2.54697866]
[1761086817762,0.0789,3926.9,3925.7,0.4412]
[1761086817953,0.0789,3926.9,3926.2,2.54694934]
[1761086818480,0.0789,3926.9,3926.3,2.54691433]
[1761086819051,0.0789,3926.9,3926.2,2.54697596]
[1761086819479,0.0789,3926.9,3926.3,2.54691202]
[1761086820053,0.0789,3926.9,3926.3,2.54688626]
[1761086820279,0.0789,3926.9,3925.7,0.4412]
[1761086820450,0.001,3926.9,3925.9,0.50688]
[1761086820651,0.001,3926.9,3926.8,2.54660283]
[1761086820853,0.001,3926.9,3926.8,3.05348283]
[1761086821054,0.001,3927.3,3927.2,3.05322345]
[1761086821285,0.001,3927.3,3927.2,18.72713673]
[1761086821477,0.001,3927.3,3927.2,20.55510959]
[1761086824753,0.12,3928.7,3928.6,2.54543603]
[1761086824988,0.12,3928.7,3927.3,2.06208]
[1761086824989,0.12,3929.0,3928.9,2.54524167]
[1761086825192,0.12,3929.4,3929.2,2.54499137]
[1761086825388,0.12,3929.4,3928.7,3.737]
[1761086825389,0.12,3929.4,3929.3,2.54498256]
[1761086825589,0.12,3929.4,3929.2,2.54504318]
[1761086825759,0.12,3929.4,3929.3,2.54498256]
[1761086825960,0.12,3929.4,3929.2,2.5450337]
[1761086826163,0.12,3929.4,3929.3,2.54498256]
[1761086827491,0.12,3929.4,3929.3,3.53054737]
[1761086827690,0.12,3929.4,3929.3,5.59262737]
[1761086828012,0.12,3929.4,3929.3,5.57981109]
[1761086828782,0.39912952,3931.4,3929.5,2.54485303]
[1761086828982,0.39912952,3931.4,3929.8,0.50688]
[1761086829182,0.39912952,3931.4,3930.0,0.50688]
[1761086829387,0.39912952,3931.4,3930.9,2.54393772]
[1761086829388,0.69412952,3931.4,3930.9,2.54393772]
[1761086829613,0.295,3931.4,3930.4,3.733]
[1761086829919,1.721,3933.3,3931.3,0.2254]
[1761086830086,0.62118653,3933.2,3931.4,3.74577131]
[1761086830286,0.62118653,3933.2,3930.5,2.50328]
[1761086830287,0.74419523,3933.5,3931.5,3.733]
[1761086830509,2.54245226,3933.3,3931.6,3.587]
[1761086830708,0.43987912,3933.4,3931.6,3.587]
[1761086830709,0.73242996,3933.4,3931.6,3.587]
[1761086830906,0.4081,3933.3,3931.7,0.01276775]
[1761086831217,0.4081,3933.3,3930.9,0.4412]
[1761086831218,0.1158,3931.8,3930.6,4.1732]
[1761086831406,0.1158,3931.8,3930.7,1.97252]
[1761086831612,0.2227,3933.0,3931.0,2.54388196]
[1761086831613,0.1227,3932.5,3931.0,2.54388196]
[1761086831924,0.1227,3932.5,3931.5,2.54355102]
[1761086832138,0.4024,3932.4,3930.8,0.4412]
[1761086832429,0.4024,3932.4,3931.6,2.54346869]
[1761086832735,0.30680198,3932.3,3930.8,0.4412]
[1761086832887,0.1227,3932.5,3930.9,4.60600188]
[1761086833082,0.1227,3932.5,3931.0,2.54388196]
[1761086833083,0.4024,3932.4,3931.0,2.54388196]
[1761086833283,0.1227,3932.5,3930.8,0.01278102]
[1761086833602,0.1227,3932.5,3931.0,0.4412]
[1761086833788,0.4024,3932.4,3931.0,1.5552]
[1761086833992,0.4024,3932.4,3930.7,1.97252]
[1761086834290,0.4024,3932.4,3931.7,2.54341515]
[1761086834509,0.4024,3932.4,3930.8,1.9964]
[1761086834820,0.4024,3932.4,3930.6,3.729]
[1761086835024,0.03178801,3932.3,3930.7,1.5552]